Cogmind - Beta 12 @@@ ROGUE MODE // 2023.12.09 @ 13:28:24 Player: morimori Result: Destroyed by as-51549 with Assembled F-torch Performance ------------- Evolutions (2) 1000 Regions Visited (5) 1000 Robots Destroyed (39) 195 Value Destroyed (828) 828 Prototype IDs (3) 60 Alien Tech Used (0) 0 Bonus (200) 200 TOTAL SCORE: 3283 Bonus ------- Entered Garrisons 200 Cogmind --------- Core Integrity 0/550 Matter 300/300 Energy 55/100 System Corruption 4% Temperature Cool (20) Movement Core (50) Location -8/Garrison Parts ------- > --- POWER (1) -------- (None) > --- PROPULSION (6) --- (None) > --- UTILITY (2) ------ (None) > --- WEAPON (2) ------- (None) > --- INVENTORY (5) ---- Heat Sink Improved Terrain Scanner Improved Terrain Scanner ECM Suite Relay Coupler [Grunt] (27) Peak State ------------ > --- POWER ------------ Light Ion Engine > --- PROPULSION ------- Flight Unit Flight Unit Improved Flight Unit Improved Flight Unit Improved Flight Unit Improved Flight Unit > --- UTILITY ---------- Large Storage Unit Hacking Suite > --- WEAPON ----------- Grenade Launcher Mining Laser > --- INVENTORY -------- Ion Engine Flight Unit Flight Unit Flight Unit Flight Unit Heat Sink Structural Scanner Improved Terrain Scanner Improved Terrain Scanner ECM Suite Relay Coupler [Grunt] Relay Coupler [Brawler] [Rating: 23] Favorites ----------- Power Ion Engine Engine Ion Engine Power Core Light Nuclear Core Propulsion Compact Wheel Wheel Compact Wheel Flight Unit Improved Flight Unit Utility Seismic Detector Device Seismic Detector Storage High-capacity Storage Unit Hackware Hacking Suite Weapon Light Assault Rifle Energy Gun Small Laser Ballistic Gun Light Assault Rifle Launcher Grenade Launcher Special Weapon Mining Laser Build | -11 -10 -10 -9 -8 -8 ------- Run | Jun Mat Min Mat Mat Gar Slots Evolved 4 | . . . 2 2 . Power . | . . . . . . Propulsion 4 | . . . 2 2 . Utility . | . . . . . . Weapon . | . . . . . . Parts Attached 65 | 8 18 8 16 5 10 Power 13 | 1 4 2 1 1 4 Engine 12 | 1 4 1 1 1 4 Core 1 | . . 1 . . . Reactor . | . . . . . . Propulsion 24 | 2 5 3 6 2 6 Treads . | . . . . . . Leg . | . . . . . . Wheel 11 | 2 5 3 1 . . Hover . | . . . . . . Flight 13 | . . . 5 2 6 Utility 9 | 3 1 . 5 . . Device 5 | 2 . . 3 . . Storage 3 | 1 1 . 1 . . Processor . | . . . . . . Hackware 1 | . . . 1 . . Protection . | . . . . . . Artifact . | . . . . . . Weapon 19 | 2 8 3 4 2 . Energy Gun 1 | 1 . . . . . Energy Cannon . | . . . . . . Ballistic Gun 15 | 1 8 2 4 . . Ballistic Cannon . | . . . . . . Launcher 2 | . . 1 . 1 . Special Weapon 1 | . . . . 1 . Impact Weapon . | . . . . . . Slashing Weapon . | . . . . . . Piercing Weapon . | . . . . . . Special Melee Weapon . | . . . . . . Unidentified Prototypes 1 | . . . 1 . . Parts Lost 15 | . . 2 . . 13 Power 3 | . . . . . 3 Propulsion 9 | . . 1 . . 8 Utility 1 | . . 1 . . . Weapon 2 | . . . . . 2 Highest Loss Streak 13 | . . 2 . . 13 To Critical Strikes . | . . . . . . Average Slot Usage (%) 92 | . 99 92 79 87 88 Engine 8 | . 14 5 4 9 7 Core 3 | . . 8 1 . . Wheel 22 | . 27 27 11 . . Flight 10 | . . . 30 54 49 Device 8 | . 14 7 5 . . Storage 12 | . 14 14 11 9 8 Hackware 1 | . . . 1 9 8 Energy Gun 1 | . 3 . . . . Ballistic Gun 18 | . 24 21 12 . . Launcher 3 | . . 6 . 3 6 Naked Turns 16 | . . . . . 16 Heaviest Build 49 | 13 49 49 49 27 27 Greatest Support 36 | 32 32 32 36 28 28 Greatest Overweight (x) 5 | . 1 3 5 . . Average Overweight (x) . | . . 1 . . . Largest Inventory Capacity 20 | 8 20 20 20 15 15 Average Capacity 14 | 7 10 20 15 15 14 Most Carried 20 | 8 18 20 19 14 15 Average Carried 13 | 5 8 19 15 11 13 Final Capacity 20 | 8 20 20 15 15 5 Final Carried 20 | 8 18 20 15 10 5 Class Distribution -------------------- 47% | Mutant 40% | Scavenger-Mutant 8% | Scavenger-Sprinter 3% | Sprinter Dominant Class ---------------- Mutant | -10/Materials Scavenger-Mutant | -10/Mines Mutant | -9/Materials Scavenger-Sprinter | -8/Materials Scavenger-Sprinter | -8/Garrison Resources | -11 -10 -10 -9 -8 -8 ----------- Run | Jun Mat Min Mat Mat Gar Matter Collected 1100 | 298 197 232 178 70 125 Remotely . | . . . . . . Salvage Created 1031 | 270 222 285 159 . 95 Parts 91 | 21 23 23 10 . 14 Haulers Intercepted . | . . . . . . Recyclers Shooed 2 | . . 1 1 . . Parts Field Recycled . | . . . . . . Retrieved Matter . | . . . . . . Parts Self-Destructed . | . . . . . . Prevented . | . . . . . . Kills | -11 -10 -10 -9 -8 -8 ------- Run | Jun Mat Min Mat Mat Gar Combat Hostiles Destroyed 26 | . 7 8 3 . 8 Guns 15 | . 7 5 3 . . AOE 11 | . . 3 . . 8 Classes Destroyed 8 | 3 4 . 1 . . Worker 2 | 2 . . . . . Tunneler 6 | 6 . . . . . Recycler 3 | 1 . 2 . . . Operator 1 | . 1 . . . . Watcher 1 | . 1 . . . . Swarmer 18 | . 5 6 . . 7 Grunt 5 | . 2 2 . . 1 Sentry 3 | . . . 3 . . Best Kill Streak 5 | 3 3 5 1 . 5 Combat Bots Only 5 | . 3 4 1 . 5 Max Kills in Single Turn 4 | 1 1 4 1 . 3 Gunslinging . | . . . . . . Exploded 3 | . . 3 . . 3 Melee . | . . . . . . Uniques/NPCs Destroyed . | . . . . . . Combat | -11 -10 -10 -9 -8 -8 -------- Run | Jun Mat Min Mat Mat Gar Damage Taken 1600 | . 211 274 90 78 947 Core 707 | . 67 45 41 . 554 Absorbed by Shields 49 | . . . . . 49 Core Remaining (%) 81 | 100 . 55 89 . . Volleys Fired 93 | 18 31 22 13 . 9 Largest 2 | 2 2 2 2 . 2 Hottest 130 | 60 60 50 43 . 130 Shots Fired 177 | 36 61 44 26 . 10 Gun 165 | 36 61 42 26 . . Cannon . | . . . . . . Launcher 11 | . . 2 . . 9 Special 1 | . . . . . 1 Kinetic 138 | 18 52 42 26 . . Thermal 28 | 18 9 . . . 1 Explosive 11 | . . 2 . . 9 Electromagnetic . | . . . . . . Robot Hit Streak 10 | 3 10 8 6 . 8 Robot Miss Streak 3 | 2 3 3 3 . 1 Penetration Max . | . . . . . . Secondary Targets 1 | . . 1 . . . Max Gunslinging Chain 1 | . . 1 . . . Shots Hit Robots 108 | 19 40 27 17 . 5 Core Hits 69 | 13 14 18 8 . 16 Critical Kills . | . . . . . . Critical Parts Destroyed . | . . . . . . Critical Strikes . | . . . . . . Melee Attacks . | . . . . . . Impact . | . . . . . . Slashing . | . . . . . . Piercing . | . . . . . . Sneak Attacks . | . . . . . . Combat Hostiles . | . . . . . . Follow-up Attacks . | . . . . . . Damage Inflicted 1835 | 239 418 402 172 . 604 Guns 1070 | 239 418 241 172 . . Cannons . | . . . . . . Explosions 759 | . . 161 . . 598 Melee . | . . . . . . Ramming 6 | . . . . . 6 Kinetic 846 | 80 353 241 172 . . Thermal 224 | 159 65 . . . . Explosive 759 | . . 161 . . 598 Electromagnetic . | . . . . . . Impact . | . . . . . . Slashing . | . . . . . . Piercing . | . . . . . . Highest Corruption 4 | . . . . . 4 Average Corruption 3 | . . . . . 3 Corruption Purged . | . . . . . . Corruption Blocked . | . . . . . . Overload Shots . | . . . . . . Overflow Damage 23 | . . 1 . . 22 Projectiles . | . . . . . . Explosions 23 | . . 1 . . 22 Melee . | . . . . . . Knockbacks . | . . . . . . Impact . | . . . . . . Kinetic . | . . . . . . Secondary . | . . . . . . Self-Inflicted Damage 141 | . . 19 . . 122 Shots 4 | . . 1 . . 3 Rammed 3 | . . . . . 3 Targets Rammed 3 | . . . . . 3 Kicked . | . . . . . . Crushed . | . . . . . . Highest Temperature 84 | 40 24 18 8 43 84 Average Temperature 18 | 22 13 9 7 13 21 Received Heat Transfer 612 | . 69 78 33 63 369 Siege Activations . | . . . . . . Robots Corrupted . | . . . . . . Combat Hostiles . | . . . . . . Parts Fried . | . . . . . . Impact Corruptions . | . . . . . . Robots Melted . | . . . . . . Combat Hostiles . | . . . . . . Parts Melted . | . . . . . . Heat Transferred 500 | 350 150 . . . . Parts Sabotaged . | . . . . . . Parts Stolen . | . . . . . . Parts Stripped . | . . . . . . Power Chain Reactions . | . . . . . . Missiles Intercepted . | . . . . . . Alert | -11 -10 -10 -9 -8 -8 ------- Run | Jun Mat Min Mat Mat Gar Peak Influence 580 | 45 212 159 272 189 580 Initial 122 | . 29 24 . 114 122 Average 105 | 25 85 74 128 128 337 Maximum Alert Level 2 | . 1 . 1 . 2 Low Security (%) 89 | 100 98 100 86 100 9 Level 1 6 | . 1 . 13 . 49 Level 2 3 | . . . . . 40 Level 3 . | . . . . . . Level 4 . | . . . . . . Level 5 . | . . . . . . High Security . | . . . . . . Max Security . | . . . . . . Squads Dispatched 2 | . 1 . . 1 . Investigation . | . . . . . . Extermination . | . . . . . . Reinforcement 2 | . 1 . . 1 . Assault . | . . . . . . Garrison . | . . . . . . Intercept . | . . . . . . Searches Triggered . | . . . . . . Construction Impeded . | . . . . . . Haulers Reinforced . | . . . . . . Active Scanning Responses . | . . . . . . Cargo Convoy Interrupts . | . . . . . . Stealth | -11 -10 -10 -9 -8 -8 --------- Run | Jun Mat Min Mat Mat Gar Distress Signals 2 | . 1 . 1 . . Communications Jammed . | . . . . . . Distress Signals . | . . . . . . Times Spotted 80 | . 16 9 11 7 37 Peak Tracking Total 22 | . 4 3 5 6 22 Tactical Retreats 7 | . 3 1 3 . . Traps | -11 -10 -10 -9 -8 -8 ------- Run | Jun Mat Min Mat Mat Gar Traps Triggered 8 | . 4 . . . 4 Indirectly . | . . . . . . Trap Hack Attempts . | . . . . . . Triggered . | . . . . . . Disarmed . | . . . . . . Reprogrammed . | . . . . . . Reused . | . . . . . . Traps Extracted . | . . . . . . Installed . | . . . . . . Triggered . | . . . . . . Machines | -11 -10 -10 -9 -8 -8 ---------- Run | Jun Mat Min Mat Mat Gar Machines Disabled 2 | . . . . . 2 Max in Single Turn 1 | . . . . . 1 Garrison Relay 2 | . . . . . 2 Machines Repaired . | . . . . . . Machines Sabotaged . | . . . . . . Overloaded Fab Kills . | . . . . . . Hacking | -11 -10 -10 -9 -8 -8 --------- Run | Jun Mat Min Mat Mat Gar Machines Accessed 11 | . 6 . 2 1 2 Terminals 9 | . 5 . 2 . 2 Fabricators . | . . . . . . Repair Stations 1 | . 1 . . . . Recycling Units . | . . . . . . Scanalyzers . | . . . . . . Garrison Access 1 | . . . . 1 . Total Hacks 25 | . 11 . 8 1 5 Successful 8 | . 2 . 4 1 1 Failed 17 | . 9 . 4 . 4 Catastrophic 3 | . 1 . 1 . 1 Database Lockouts . | . . . . . . Manual 9 | . 4 . 5 . . Terminals 23 | . 10 . 8 . 5 Fabricators . | . . . . . . Repair Stations 1 | . 1 . . . . Recycling Units . | . . . . . . Scanalyzers . | . . . . . . Garrison Access 1 | . . . . 1 . Terminal Hacks 7 | . 2 . 4 . 1 Part Schematic 2 | . . . 2 . . Robot Analysis 1 | . . . 1 . . Prototype ID Bank 1 | . 1 . . . . Emergency Access Points 1 | . 1 . . . . Zone Layout 1 | . . . 1 . . Security Stations 1 | . . . . . 1 Fabricator Hacks . | . . . . . . Repair Station Hacks . | . . . . . . Recycling Unit Hacks . | . . . . . . Scanalyzer . | . . . . . . Garrison Access Hacks 1 | . . . . 1 . Unlock Access 1 | . . . . 1 . Unauthorized Hacks . | . . . . . . Terminals . | . . . . . . Fabricators . | . . . . . . Repair Stations . | . . . . . . Recycling Units . | . . . . . . Scanalyzers . | . . . . . . Garrison Access . | . . . . . . Data Cores Recovered . | . . . . . . Used . | . . . . . . Hacking Detections 10 | . 6 . 2 . 2 Full Trace Events 1 | . . . . . 1 Feedback Events . | . . . . . . Feedback Blocked . | . . . . . . Robot Schematics Acquired . | . . . . . . Robots Built . | . . . . . . Authchips . | . . . . . . Time . | . . . . . . Total Robot Build Rating . | . . . . . . Part Schematics Acquired 2 | . . . 2 . . Parts Built . | . . . . . . Authchips . | . . . . . . Time . | . . . . . . Total Part Build Rating . | . . . . . . Parts Repaired . | . . . . . . Time . | . . . . . . Parts Recycled . | . . . . . . Recycled Matter . | . . . . . . Retrieved Matter . | . . . . . . Retrieved Components . | . . . . . . Parts Scanalyzed . | . . . . . . Part Schematics Acquired . | . . . . . . Parts Damaged . | . . . . . . Bothacking | -11 -10 -10 -9 -8 -8 ------------ Run | Jun Mat Min Mat Mat Gar Used RIF Installer . | . . . . . . Robots Hacked . | . . . . . . Non-combat . | . . . . . . Combat . | . . . . . . Robot Hacks Applied . | . . . . . . Relay Couplers Released 8 | . . . . . 8 Machine Destruction 8 | . . . . . 8 Fabnet Peak Effective % . | . . . . . . Robots Rewired . | . . . . . . Allies Hacked . | . . . . . . Hacks Repelled . | . . . . . . Allies | -11 -10 -10 -9 -8 -8 -------- Run | Jun Mat Min Mat Mat Gar Total Allies . | . . . . . . Largest Group . | . . . . . . Highest-Rated Group . | . . . . . . Highest-Rated Ally . | . . . . . . Total Orders . | . . . . . . Ally Attacks . | . . . . . . Total Damage . | . . . . . . Kills . | . . . . . . Allies Corrupted . | . . . . . . Allies Melted . | . . . . . . Intel | -11 -10 -10 -9 -8 -8 ------- Run | Jun Mat Min Mat Mat Gar Robot Analysis Total 1 | . . . 1 . . Derelict Logs Recovered . | . . . . . . Drone Launches . | . . . . . . Drone Recoveries . | . . . . . . Exploration | -11 -10 -10 -9 -8 -8 ------------- Run | Jun Mat Min Mat Mat Gar Turns Passed 2661 | 247 832 970 322 36 254 Spaces Moved 2382 | 164 698 759 358 71 332 Core 30 | 3 . . . . 27 Treads . | . . . . . . Legs . | . . . . . . Wheels 1687 | 161 698 759 69 . . Hover . | . . . . . . Flight 665 | . . . 289 71 305 Fastest Speed 25 | 50 90 105 31 25 25 Average Speed 83 | 99 96 111 54 25 27 Slowest Speed 390 | 100 115 145 390 25 50 Overloaded Moves . | . . . . . . Propulsion Burnouts . | . . . . . . Robots Hopped 12 | . . . 8 2 2 Cave-ins Triggered . | . . . . . . Exploration Rate (%) 43 | 5 75 102 29 11 41 Regions Visited 5 Branch Regions 1 Pre-discovered Areas . | . . . . . . Known Exits Taken 1 | . . . . 1 . Unknown Exits Taken 4 | 1 1 1 1 . . Scrap Searched 1 | . . 1 . . . Spaces Dug 7 | . . . . . 7 Terrain Destroyed 56 | . . 21 . . 35 Melee . | . . . . . . Projectile . | . . . . . . AOE 56 | . . 21 . . 35 Terrain Rammed . | . . . . . . Walls Destroyed . | . . . . . . Machines Disabled . | . . . . . . Actions | -11 -10 -10 -9 -8 -8 --------- Run | Jun Mat Min Mat Mat Gar Total 2898 | 216 796 856 463 86 481 Wait 259 | 8 32 51 57 13 98 Move 2351 | 163 697 758 341 66 326 Hop 12 | . . . 8 2 2 Pick Up 40 | 13 10 7 4 . 6 Fast Attach 25 | 7 11 . 7 . . Attach 17 | . . 1 4 5 7 Detach 5 | . . . 5 . . Swap 23 | 1 7 7 5 . 3 Drop 45 | 6 8 10 19 . 2 Fire 93 | 18 31 22 13 . 9 Melee . | . . . . . . Ram 3 | . . . . . 3 Kick . | . . . . . . Crush . | . . . . . . Escape Stasis 25 | . . . . . 25 Rewire . | . . . . . . Trap . | . . . . . . Miscellaneous . | . . . . . . Route ------- -11/Junkyard -10/Materials (discovered 3 exits: *Mat x2 / [*Min]) -10/Mines (discovered 2 exits: *Mat x2) -9/Materials -8/Materials -8/Garrison (discovered 1 exit: [*Fac]) History --------- Turn | Location | Event 26 | -11/Junkyard | Discovered new exit (range 14) 248 | -11/Junkyard | Entered Materials 327 | -10/Materials | Build established: Mutant 598 | -10/Materials | Discovered new exit (range 3) 1036 | -10/Materials | Discovered new exit (range 11) 1060 | -10/Materials | Discovered new exit (range 12) 1080 | -10/Materials | Entered Mines 1304 | -10/Mines | Discovered new exit (range 15) 1383 | -10/Mines | Build established: Scavenger-Mutant 1639 | -10/Mines | Discovered new exit (range 15) 2050 | -10/Mines | Entered Materials 2050 | -9/Materials | Evolved 2 slots: Propulsion x2 2333 | -9/Materials | Discovered new exit (range 13) 2372 | -9/Materials | Entered another Materials area 2372 | -8/Materials | Evolved 2 slots: Propulsion x2 2396 | -8/Materials | Identified exit to Garrison 2408 | -8/Materials | Entered Garrison 2430 | -8/Garrison | Triggered checkpoint 2548 | -8/Garrison | Triggered checkpoint 2550 | -8/Garrison | Triggered checkpoint 2556 | -8/Garrison | Assembled breached garrison interior 2565 | -8/Garrison | Discovered new exit (range 12) 2566 | -8/Garrison | Learned Factory security intel 2579 | -8/Garrison | Attempted to access garrison exit controls, blocked by remote lockdown 2609 | -8/Garrison | Garrison Relay disabled 2646 | -8/Garrison | Released all parts (4) 2649 | -8/Garrison | Core integrity fell below 50% 2661 | -8/Garrison | Core integrity fell below 20% 2662 | -8/Garrison | Destroyed by as-51549 with Assembled F-torch Last Messages --------------- 02639_ Field strength at 16. 02639_ Flight Unit destroyed. 02640_ Field strength at 9. 02641_ Field strength at 2. 02642_ Flight Unit destroyed. 02642_ Stasis field depleted. 02644_ Lgt. Ion Engine destroyed. 02646_ Dropped Lrg. Storage Unit. 02646_ Released Hacking Suite. 02646_ Released Imp. Flight Unit. 02646_ Released Flight Unit. 02647_ Acquired 34 matter. 02647_ Field strength at 2. 02648_ Acquired 21 matter. 02648_ Stasis field depleted. 02652_ as-06991 shuts down. 02660_ Slammed into as-83525. 02661_ Slammed into as-86078. 02661_ Destabilizing: System corrupted (+1). 02662_ Slammed into as-86078. Map ----- +----------------------------------------------------+ | ???????????????????????????????????# #####???????? | | ???????????????????????????????????# #???????????? | | ???????????????????????????????????# #????#####??? | | ???????????????????????????????????# #??### #??? | | ???????????????????????????????????# #### # #### | | ???????????????????????????????????# ! | | ???????????????????????????????????## ! ## ##### | | ???????????????????????????????????#" """#####???? | | ???????????????????????????????????#######???????? | | ?????????????????????????????????????????????????? | | ????????????????????????????????????????????????## | | ????????????????????????????????????????????????# | | ????????????????????????????????????????#####???# | | ????????????????????????????????????????#"T"##### | | ????????????????????????????????????????#" | | ????????????????????????????????????????######### | | ???????????????????????????????????????????????# | | ???????????????????????????###????????########### | | ??????????????????????????? #????????# | | ???????????????????????????# #????????#=######## | | ??????????????????????###??# #?########=#??????## | | ??????????????????????# #??# ### #[!!#??????## | | ??????????????????????# #?## # # =[#!*=##?????# [ | | ????????????????####### ###aaa% *[%=%==######## | | ????????????????# #aaaaa a %*%! =% * | | ????????????????# aa@aaa ![!==% | | ????????????????###########aa # a ##%% ####### | | ????????????????????????###%! ## ## ###???### | | ????????????????????????# #?????? | | ????????????????????????# #?????? | | ????????????????????????#[% #?????? | | ????????????????????????# #?????? | | ????????????????????????### ## ## ###?????? | | ??????????????????????????# ## ## #???????? | | ??????????????????????????# #???????? | | ??????????????????????????# #???????? | | ??????????????????????????# #???????? | | ??????????????????????????## ## ## ##???????? | | ???????????????????????????# ## ## #????????? | | ???????????????????????????# ######## #????????? | | ???????????????????????????# ???????# #????????? | | ???????????????????????????? ???????# #????????? | | ?????????????????????????????????????# #????????? | | ?????????????????????????????????????# #????????? | | ?????????????????????????????????????# ########## | | ?????????????????????????????????????# | | ?????????????????????????????????????# | | ?????????????????????????????????????######++##### | | ??????????????????????????????????????????# #???? | | ????????????????????????????????????####### ###?? | +----------------------------------------------------+ Best States ------------- Heat Dissipation 38 Energy Generation 14 Energy Capacity 250 Matter Stores 300 Matter Capacity 300 Sight Range 16 Terrain Scan Density 10 Evasion (%) 65 Offensive Hacking 10 Item Schematics ----------------- VTOL Module | -9/Materials | Hacked Lgt. Ion Engine | -9/Materials | Hacked Robot Schematics ------------------ None Fabricated ------------ Nothing Alien Tech Used ----------------- None Achievements -------------- Short-term Sacrifices Challenges ------------ None Game ------ Seed WeldingBeamInterpreter Manual? 0 Play Time 00:50:13 Cumulative 104.7 hours Start 2023.12.09 @ 12:26:52 End 2023.12.09 @ 13:28:24 Sessions 1 Manual Loads 0 Difficulty Rogue Special Mode None Game No. 67 Rogue 67 Adventurer 0 Explorer 0 Win Type - Total 0 Types 0/0/0/0/0/0/0/0/0 Lore% 39 Gallery% 43 Achievement% 36 Wizard Run 0 Options --------- ASCII 0 Keyboard 1 Movement Vi Keybinds 0 Fullscreen 2 Font 18/SmallcapsGlow Map View 76x50 Tactical HUD 1 Map Filters NONE Filters NONE Steam 1 RUN: 32128e80-53d6-4408-ac4f-cf5af3317895